bitfinex-derivatives/quotes_ETHF0:USTF0_20250518
["timestamp","ask_amount","ask_price","bid_price","bid_amount"]
[1747580561534,3.37631,2555.0,2554.9,3.058]
[1747580561737,8.54981,2555.0,2554.9,1.989]
[1747580562235,8.54981,2555.0,2554.9,1.02596]
[1747580562435,0.78276,2554.2,2554.1,2.56245148]
[1747580562632,0.78285,2553.9,2553.8,1.51514414]
[1747580562934,10.61482,2554.0,2553.8,1.07911796]
[1747580563132,10.61482,2554.0,2553.9,2.4401]
[1747580563437,9.832,2554.0,2553.9,2.4401]
[1747580563630,10.61482,2554.0,2553.9,2.4401]
[1747580564242,3.2078,2554.6,2553.9,13.7059]
[1747580564427,13.0398,2554.6,2553.9,12.87708578]
[1747580564628,8.2788,2554.5,2553.9,5.4981]
[1747580564936,0.78277,2554.2,2553.9,5.4981]
[1747580565135,12.2698,2554.4,2553.9,5.4981]
[1747580565340,2.4378,2554.3,2553.9,5.4981]
[1747580565832,9.832,2554.3,2553.9,5.4981]
[1747580566031,9.832,2554.3,2554.1,0.78279]
[1747580566244,10.6147,2554.4,2554.2,2.6758]
[1747580566743,0.78273,2554.3,2554.2,2.6758]
[1747580567138,3.41023,2554.3,2554.2,2.6758]
[1747580567438,13.24223,2554.3,2554.2,2.6758]
[1747580567735,3.10796096,2554.8,2554.2,7.6758]
[1747580568037,3.10796096,2554.8,2554.4,3.2078]
[1747580568439,3.10796096,2555.1,2554.9,0.78253]
[1747580568743,3.89044096,2555.1,2555.0,2.6072]
[1747580569037,3.10796096,2555.1,2555.0,11.07791336]
[1747580569243,3.10796096,2555.1,2555.0,14.65551]
[1747580569537,3.10796096,2555.1,2555.0,19.13591336]
[1747580569845,9.831,2556.0,2555.7,0.78228]
[1747580570049,0.78224,2556.0,2555.8,2.6072]
[1747580570235,12.83859633,2556.1,2555.4,3.2078]
[1747580570435,0.78234,2555.6,2555.4,3.99018]
[1747580570635,0.78231,2555.7,2555.4,3.2078]
[1747580570932,0.78239,2555.4,2555.3,2.6072]
[1747580571944,0.78245,2555.2,2555.1,5.7015]
[1747580572245,2.5454,2555.3,2554.8,2.6084]
[1747580572441,0.78253,2555.0,2554.8,2.6084]
[1747580573037,3.38199,2555.1,2554.8,2.6084]
[1747580573237,2.5995,2555.1,2554.8,5.6664]
[1747580573432,2.5995,2555.0,2554.8,5.6664]
[1747580573836,0.78255,2554.9,2554.8,3.058]
[1747580574235,10.60299297,2554.9,2554.8,3.058]
[1747580574433,13.07709297,2554.9,2554.8,3.058]
[1747580574640,15.67659297,2554.9,2554.8,3.058]
[1747580574838,3.2078,2555.0,2554.8,3.058]
[1747580575145,0.78255,2554.9,2554.2,3.2078]
[1747580575341,0.78255,2554.9,2553.9,0.09218003]
[1747580575342,3.2078,2554.7,2553.9,3.29998003]
[1747580575544,12.3557,2554.6,2554.2,3.2078]
[1747580575844,13.13834,2554.6,2554.2,3.99054]
[1747580576237,3.30834,2554.6,2554.2,0.78274]
[1747580576439,2.5257,2554.6,2554.0,5.1597]
[1747580576638,2.5257,2554.6,2554.4,0.78269]
[1747580576848,2.5257,2554.6,2554.5,2.6757]
[1747580577149,3.30834,2554.6,2554.5,2.6757]
[1747580578548,2.5257,2554.6,2554.5,2.6757]
[1747580578748,3.25666,2554.9,2554.5,2.6757]
[1747580579042,3.25666,2554.9,2554.6,2.4922]
[1747580579043,2.6552,2554.9,2554.6,2.4922]
[1747580579350,0.78261,2554.7,2554.6,2.4922]
[1747580579548,0.78264,2554.6,2554.5,2.6757]
[1747580579751,3.2078,2555.0,2554.5,2.6757]
[1747580579942,3.2078,2555.0,2554.6,2.4922]
[1747580579943,3.43776,2554.9,2554.6,2.4922]
[1747580580249,3.43775,2554.9,2554.6,3.27482]
[1747580580442,3.43775,2554.9,2554.6,5.79452]
[1747580580657,0.78258,2554.8,2554.7,2.4922]
[1747580580843,2.6552,2554.9,2554.6,2.5197]
[1747580581043,0.78259,2554.8,2554.7,2.4922]
[1747580581246,2.6552,2554.9,2554.5,2.6757]
[1747580581436,13.2778,2555.0,2554.5,2.6757]
[1747580581637,0.67011,2554.7,2554.6,2.5522]
[1747580581844,3.2078,2555.0,2554.6,5.76]
[1747580582044,0.78261,2554.7,2554.6,5.76]
[1747580582244,0.78261,2554.7,2554.6,2.5522]
[1747580582446,0.78264,2554.6,2554.5,2.6757]
[1747580582646,3.2078,2554.6,2554.2,2.5522]
[1747580582849,0.78273,2554.3,2554.2,5.1715]
[1747580583048,0.78282,2554.0,2553.9,1.15364063]
[1747580583452,0.78282,2554.0,2553.7,5.1715]
[1747580583453,0.78297,2553.5,2553.2,3.2078]
[1747580583653,0.78301,2553.4,2553.3,5.1715]
[1747580583853,13.2768,2553.7,2553.1,2.23871913]
[1747580584056,0.78306,2553.2,2553.1,2.23871913]
[1747580584258,10.85406,2553.2,2553.1,2.23871913]
[1747580584556,0.78316,2552.9,2552.8,3.00507308]
[1747580584755,3.99096,2552.9,2552.8,3.00507308]
[1747580585145,2.67,2553.1,2552.8,3.00507308]
[1747580585349,0.78316,2552.9,2552.8,3.00507308]
[1747580585644,10.071,2552.9,2552.8,3.00507308]
[1747580585850,13.52416,2552.9,2552.8,3.00507308]
[1747580586047,43.45577,2553.5,2552.8,3.00507308]
[1747580586248,10.85402,2553.4,2552.8,10.48822423]
[1747580586554,15.1581,2553.6,2553.1,0.78308]
[1747580586758,10.071,2553.5,2553.3,0.78302]
[1747580586953,10.071,2553.5,2553.4,5.2173]
[1747580587157,2.67,2553.6,2553.4,5.2173]
[1747580587353,0.7831,2553.1,2552.7,1.27697531]
[1747580587653,13.2798,2553.5,2552.7,1.27697531]
[1747580587654,10.072,2553.2,2552.8,4.471457]
[1747580587859,10.072,2553.2,2552.9,2.58770174]
[1747580588057,2.6229,2553.1,2552.9,0.12240174]
[1747580588268,5.8307,2553.1,2552.7,1.27697531]
[1747580588463,15.8727,2553.1,2552.7,1.27697531]
[1747580588656,5.8307,2553.1,2552.4,5.1266]
[1747580588961,0.78316,2552.9,2552.8,4.36111641]
[1747580589154,0.78325,2552.6,2552.5,4.53157033]
[1747580589354,0.78325,2552.6,2552.3,1.04828221]
[1747580589355,0.78331,2552.4,2552.3,1.04828221]
[1747580589561,3.2078,2552.4,2551.9,2.5786]
[1747580589763,0.78343,2552.0,2551.9,2.5786]
[1747580589967,3.2078,2552.0,2550.3,1.95983]
[1747580590160,3.2078,2550.7,2550.2,1.90859991]
[1747580590361,3.99169,2550.5,2550.4,5.12947848]
[1747580590755,5.9441,2550.5,2550.4,5.12947848]
[1747580590962,16.80199,2550.5,2550.4,5.12947848]
[1747580591462,5.9441,2550.5,2550.4,5.12947848]
[1747580591771,16.0181,2550.5,2550.4,5.12947848]
[1747580592069,3.2078,2550.5,2550.4,5.12947848]
[1747580592265,6.72799,2550.5,2550.4,5.12947848]
[1747580592469,5.9441,2550.5,2550.4,0.07841907]
[1747580592667,16.0181,2550.5,2550.4,0.07841907]
[1747580592964,5.9441,2550.5,2550.4,0.07841907]
[1747580593166,5.9441,2550.5,2550.4,3.13641907]
[1747580593167,3.2078,2550.5,2550.4,3.13641907]
[1747580593669,14.06969,2550.5,2550.4,3.13641907]
[1747580594063,19.06969,2550.5,2550.4,3.13641907]
[1747580594268,5.16782,2550.2,2549.4,1.90859991]
[1747580594466,3.2078,2549.5,2549.4,1.90859991]
[1747580594758,3.2078,2549.8,2549.4,2.69282991]
[1747580594963,3.2078,2549.8,2549.5,2.6658]
[1747580595164,3.2078,2549.8,2549.6,0.07844367]
[1747580595460,3.2078,2550.2,2549.6,4.58185711]
[1747580595766,3.2078,2549.9,2549.6,0.07844367]
[1747580595965,3.2078,2549.9,2549.7,2.6658]
[1747580596671,3.2078,2549.9,2549.8,0.07843752]
[1747580596968,3.2078,2550.3,2550.1,0.78401]
[1747580597164,3.2078,2550.3,2549.9,2.6213]
[1747580597364,3.2078,2550.3,2549.9,2.69973444]
[1747580597559,3.2078,2550.3,2549.9,7.87310157]
[1747580597765,3.2078,2550.3,2550.0,0.78404]
[1747580597972,3.2078,2550.3,2549.9,7.08903157]
[1747580598170,13.7608,2550.6,2550.2,0.78396]
[1747580598370,3.2078,2550.6,2550.5,0.78389]
[1747580598571,3.2078,2551.0,2550.3,17.58617103]
[1747580598876,3.2078,2551.0,2550.5,4.34252649]
[1747580599068,3.2078,2551.0,2550.6,2.6213]
[1747580599465,3.2078,2550.7,2550.6,2.6213]
[1747580601268,3.2078,2550.7,2550.6,3.40516]
[1747580601475,13.7618,2551.1,2550.7,0.78382]
[1747580601672,3.2078,2551.1,2551.0,0.78374]
[1747580601876,1.15217701,2551.4,2551.3,0.78365]
[1747580602177,3.2078,2551.9,2551.3,17.85856521]
[1747580602371,3.2078,2551.9,2551.4,2.5455]
[1747580602669,3.2078,2551.9,2551.5,4.17083441]
[1747580602875,0.78353,2551.7,2551.6,2.7299]
[1747580603171,3.2078,2551.9,2551.6,2.7299]
[1747580603369,13.7628,2551.9,2551.6,2.7299]
[1747580603575,0.78353,2551.7,2551.6,2.7299]
[1747580603965,2.562,2551.8,2551.0,40.8]
[1747580604169,0.78359,2551.5,2551.1,2.7299]
[1747580604370,6.55337,2551.6,2551.1,3.51361]
[1747580604675,6.55337,2551.6,2551.1,3.5136]
[1747580604869,0.78359,2551.5,2551.2,2.7299]
[1747580605069,10.555,2551.4,2551.2,2.7299]
[1747580605274,3.2078,2551.3,2551.2,2.7299]
[1747580605772,3.2078,2551.3,2551.2,3.51358]
[1747580606567,3.2078,2551.8,2551.6,0.78354]
[1747580606768,3.2078,2551.8,2551.7,3.51433]
[1747580607173,10.555,2552.2,2551.7,15.45421069]
[1747580607378,10.555,2552.2,2551.8,2.7308]
[1747580607674,10.555,2552.2,2551.8,3.51429]
[1747580608172,11.33838,2552.2,2551.8,2.7308]
[1747580608372,3.2078,2552.4,2551.9,4.09383479]
[1747580608575,0.78339,2552.2,2552.0,2.514]
[1747580608772,3.2078,2552.4,2552.0,2.514]
[1747580608971,0.78339,2552.2,2552.0,2.514]
[1747580609174,3.2078,2552.4,2552.0,2.514]
[1747580609380,0.78336,2552.3,2552.0,2.514]
[1747580609676,0.78338,2552.2,2552.0,2.514]
[1747580609878,3.2078,2552.4,2552.0,2.514]
[1747580610281,3.2078,2552.4,2552.2,0.78335]
[1747580610467,3.2078,2552.4,2552.3,3.29734]
[1747580610666,3.2078,2552.4,2552.3,7.61609731]
[1747580610870,3.2078,2552.4,2552.3,12.61609731]
[1747580611074,3.2078,2552.4,2552.3,8.29734]
[1747580611273,3.2078,2552.4,2552.3,12.49359102]
[1747580612076,3.2078,2553.1,2552.4,1.95829]
[1747580612378,0.78326,2552.6,2552.5,4.51549007]
[1747580612776,0.78346,2551.9,2551.8,2.6683]
[1747580613075,3.2078,2552.2,2551.8,0.78348]
[1747580613281,0.78341,2552.1,2551.8,0.78348]
[1747580613473,3.99117,2552.2,2551.7,2.6614]
[1747580613673,3.99117,2552.2,2551.8,0.78347]
[1747580613873,3.99117,2552.2,2551.8,4.90726195]
[1747580614179,0.78343,2552.0,2551.9,2.686]
[1747580614981,0.78357,2551.6,2551.2,46.68]
[1747580615176,0.78354,2551.7,2551.5,2.6497]
[1747580615376,3.2078,2551.9,2551.5,2.6497]
[1747580615675,3.2078,2551.6,2551.5,2.6497]
[1747580616279,3.99136,2551.6,2551.5,2.6497]
[1747580616982,3.2078,2551.6,2551.5,2.6497]
[1747580617377,3.2078,2551.6,2551.5,3.43329]
[1747580617579,3.2078,2551.6,2551.5,2.6497]
[1747580618283,3.2078,2551.6,2551.5,3.43329]
[1747580618680,3.99136,2551.6,2551.5,2.6497]
[1747580618881,0.78355,2551.7,2551.5,2.6497]
[1747580619185,3.2078,2551.9,2551.6,0.78355]
[1747580619485,3.99128,2551.9,2551.7,2.7844]
[1747580619682,3.2078,2551.9,2551.7,2.7844]
[1747580619878,3.2078,2551.9,2551.8,4.3716619]
[1747580620280,3.2078,2551.9,2551.8,5.1551619]
[1747580620575,10.553,2552.2,2551.8,7.1560619]
[1747580620783,10.553,2552.2,2551.8,7.9395419]
[1747580620982,10.553,2552.2,2551.8,7.1560619]
[1747580621280,0.78347,2551.9,2551.8,7.1560619]
[1747580621482,0.78347,2551.9,2551.8,2.7844]
[1747580622285,5.827,2552.1,2551.8,2.7844]
[1747580622286,3.2078,2552.1,2551.8,3.56787]
[1747580622586,3.2078,2552.1,2551.8,2.7844]
[1747580622983,3.2078,2552.1,2552.0,0.78343]
[1747580623189,3.2078,2552.1,2551.9,4.52675731]
[1747580623388,3.2078,2552.1,2552.0,10.38357958]
[1747580623588,3.2078,2552.1,2552.0,5.90683]
[1747580623986,3.9912,2552.1,2552.0,9.60014958]
[1747580624495,0.7834,2552.1,2552.0,9.60014958]
[1747580625198,3.2078,2552.5,2552.4,0.78331]
[1747580625527,2.32870973,2552.7,2552.0,9.60014958]
[1747580625801,2.32870973,2552.7,2552.3,0.09218003]
[1747580625995,0.78328,2552.5,2552.4,2.6284]
[1747580626603,3.99105,2552.7,2552.4,2.6284]
[1747580626794,3.2078,2552.7,2552.4,2.6284]
[1747580626994,0.78322,2552.8,2552.4,2.6284]
[1747580627201,0.78324,2552.7,2552.5,0.78326]
[1747580627398,0.78324,2552.7,2552.6,2.5557]
[1747580627710,0.78331,2552.4,2552.3,0.09218003]
[1747580627899,3.99111,2552.4,2552.3,0.09218003]
[1747580629802,0.78335,2552.3,2552.1,2.5557]
[1747580630001,0.78337,2552.2,2552.1,2.5557]
[1747580630203,2.6664,2552.3,2551.5,2.6328]
[1747580630500,0.78345,2552.0,2551.7,0.78352]
[1747580630692,3.99122,2552.1,2551.8,3.46729]
[1747580630892,3.2078,2552.1,2552.0,0.78343]
[1747580631602,3.2078,2552.1,2552.0,0.90586921]
[1747580631903,0.78328,2552.5,2552.4,0.09218003]
[1747580632297,3.44968,2552.5,2552.4,0.09218003]
[1747580632498,3.44968,2552.5,2552.4,0.21461924]
[1747580633000,8.44968,2552.5,2552.4,0.21461924]
[1747580633296,2.6664,2552.5,2551.9,2.7445]
[1747580633492,0.78332,2552.4,2552.0,0.78342]
[1747580633705,5.55043135,2552.6,2552.1,2.7445]
[1747580633898,4.76717135,2552.6,2552.4,0.09218003]
[1747580634100,5.55043135,2552.6,2552.4,0.09218003]
[1747580634301,4.76717135,2552.6,2552.5,2.7445]
[1747580635002,5.55042135,2552.6,2552.5,2.7445]
[1747580635204,5.55042135,2552.6,2551.7,13.4348]
[1747580635205,0.78347,2551.9,2551.8,2.7445]
[1747580636304,5.9388,2552.1,2551.8,2.7445]
[1747580636506,3.2078,2552.1,2552.0,0.78343]
[1747580636913,3.2078,2552.1,2552.0,5.23392614]
[1747580637109,3.2078,2552.1,2552.0,0.78343]
[1747580637409,3.2078,2552.1,2552.0,5.2587497]
[1747580637710,3.2078,2552.1,2552.0,4.4753197]
[1747580638210,0.78337,2552.2,2552.0,3.52583]
[1747580638410,0.78337,2552.2,2552.0,2.7424]
[1747580638608,1.56084739,2552.3,2552.2,0.78337]
[1747580639110,1.56084739,2552.3,2552.2,5.11258185]
[1747580639310,1.56084739,2552.3,2552.2,7.74978185]
[1747580639608,2.32870973,2552.5,2552.4,0.78331]
[1747580640013,2.32870973,2552.5,2552.4,10.18368074]
[1747580640314,3.10874452,2552.8,2552.7,0.78322]
[1747580640511,3.10874452,2552.8,2552.7,19.19802]
[1747580640713,3.10874452,2552.8,2552.7,23.71312862]
[1747580641212,3.8525434,2553.2,2553.1,0.7831]
[1747580641612,3.8525434,2553.2,2553.1,5.09076326]
[1747580641814,7.67530633,2553.8,2553.1,9.30766326]
[1747580642008,7.67530633,2553.8,2553.6,0.78293]
[1747580642204,7.67530633,2553.8,2553.2,10.184]
[1747580642407,7.67530633,2553.8,2553.7,5.30390296]
[1747580642714,1.61424454,2554.1,2553.7,14.72099296]
[1747580643017,1.61424454,2554.1,2554.0,0.78282]
[1747580643406,1.61424454,2554.1,2554.0,5.16259563]
[1747580643606,1.61424454,2554.1,2554.0,15.34859563]
[1747580644007,3.2078,2554.8,2554.2,1.95691]
[1747580644212,2.7374,2555.1,2554.8,0.78258]
[1747580644808,2.24771579,2555.2,2554.8,0.78258]
[1747580644809,10.99867116,2555.5,2554.8,4.3894154]
[1747580645011,3.2078,2555.2,2554.8,4.3894154]
[1747580645320,2.5325,2554.9,2554.3,3.2078]
[1747580645514,2.5325,2554.9,2554.2,10.187]
[1747580645713,0.78258,2554.8,2554.7,4.15263946]
[1747580645909,0.78258,2554.8,2554.5,2.6548]
[1747580646112,2.5325,2554.7,2554.5,2.6548]
[1747580646418,3.2078,2554.6,2554.3,40.8]
[1747580646620,3.2078,2554.6,2554.5,0.78267]
[1747580646823,3.2078,2555.4,2554.5,3.2078]
[1747580647022,2.5325,2555.3,2554.7,0.78259]
[1747580647208,2.5325,2555.3,2554.8,2.6548]
[1747580647413,0.78263,2554.7,2554.4,3.99048]
[1747580647717,2.5325,2554.6,2554.5,0.78267]
[1747580647931,10.299,2555.3,2554.8,0.78258]
[1747580648116,2.6068,2555.1,2554.9,2.5628]
[1747580648315,3.38931,2555.1,2554.9,3.34533]
[1747580648519,0.78257,2554.9,2554.7,0.7826]
[1747580648823,2.6068,2555.1,2554.6,6.92811776]
[1747580649021,3.99041,2554.7,2554.6,4.36531776]
[1747580649320,0.78275,2554.3,2554.0,5.4623]
[1747580649516,0.78269,2554.5,2554.2,0.78275]
[1747580649810,2.6068,2554.4,2554.2,0.78275]
[1747580650014,2.6068,2554.4,2554.3,0.78273]
[1747580650509,10.298,2554.8,2554.2,2.5628]
[1747580650719,2.6068,2554.7,2554.1,3.2078]
[1747580651021,0.78276,2554.2,2554.1,3.2078]
[1747580651218,0.78287,2553.9,2553.6,3.34572]
[1747580651521,0.78287,2553.9,2553.6,2.5628]
[1747580651722,2.6997,2553.8,2553.7,7.50978009]
[1747580651932,3.2078,2554.5,2553.7,6.72687009]
[1747580651933,13.5058,2554.5,2553.7,6.72687009]
[1747580652124,3.48242,2554.4,2554.2,0.78275]
[1747580652320,2.6997,2554.4,2553.8,14.63129305]
[1747580652517,2.7363,2554.7,2554.4,0.78268]
[1747580652518,0.78265,2554.6,2554.4,0.78268]
[1747580652821,0.78271,2554.4,2554.2,3.39215]
[1747580653126,2.6997,2554.3,2554.2,2.6094]
[1747580653427,2.6997,2554.3,2554.0,3.2078]
[1747580653626,0.78281,2554.1,2553.8,18.6494]
[1747580653823,0.78282,2554.0,2553.8,8.4654]
[1747580654123,0.78285,2553.9,2553.8,8.4654]
[1747580654322,0.78288,2553.8,2553.7,3.2078]
[1747580654519,2.5896,2553.9,2553.7,3.2078]
[1747580655027,0.78281,2554.1,2553.9,0.78285]
[1747580655225,0.78277,2554.2,2553.9,0.78285]
[1747580655426,0.78278,2554.2,2554.0,2.5345]
[1747580655729,8.6147,2554.7,2554.0,2.5345]
[1747580656024,3.2078,2554.7,2554.5,0.78265]
[1747580656229,3.2078,2554.7,2554.3,0.78271]
[1747580656417,0.78273,2554.3,2554.2,2.5345]
[1747580656619,0.78272,2554.4,2553.8,3.2078]
[1747580656821,0.78269,2554.5,2554.2,0.78274]
[1747580657123,0.78274,2554.3,2554.1,4.36298118]
[1747580657329,0.78272,2554.4,2554.1,0.78277]
[1747580657527,3.2078,2554.8,2554.2,3.2078]
[1747580657726,0.78271,2554.4,2554.2,0.78273]
[1747580658026,0.78273,2554.3,2554.0,5.1778143]
[1747580658222,2.6487,2554.3,2554.2,0.78276]
[1747580658421,3.2078,2554.8,2554.1,2.6044]
[1747580658623,3.2078,2554.8,2554.3,3.2078]
[1747580658829,0.78262,2554.7,2554.4,3.38707]
[1747580659127,2.6487,2554.7,2554.5,0.78266]
[1747580659320,3.43132,2554.7,2554.5,3.38706]
[1747580659530,2.6487,2554.7,2554.5,2.6044]
[1747580660635,3.2078,2554.8,2554.5,2.6044]
[1747580660826,3.2078,2554.8,2554.7,0.78261]
[1747580661427,2.5853,2555.0,2554.8,0.78256]
[1747580661621,0.78261,2554.7,2554.6,3.2078]
[1747580661822,0.7827,2554.4,2554.3,3.2078]
[1747580662625,3.2078,2554.5,2554.0,4.08280003]
[1747580662831,2.5853,2554.3,2554.0,3.29998003]
[1747580663022,2.5853,2554.3,2554.1,2.6881]
[1747580663225,2.5853,2554.3,2554.2,0.78276]
[1747580663424,0.78279,2554.1,2554.0,3.29998003]
[1747580663624,0.78279,2554.1,2554.0,0.09218003]
[1747580664833,3.54129,2554.1,2554.0,0.09218003]
[1747580665033,2.7585,2554.1,2554.0,0.09218003]
[1747580665331,3.54129,2554.1,2554.0,0.09218003]
[1747580666235,8.54129,2554.1,2554.0,0.09218003]
[1747580666426,11.74909,2554.1,2554.0,0.09218003]
[1747580666728,10.9663,2554.1,2553.1,3.2078]
[1747580667034,0.7829,2553.8,2553.4,3.2078]
[1747580667235,0.7829,2553.8,2553.4,2.5403]
[1747580667531,0.78299,2553.5,2553.1,3.99089]
[1747580667833,3.50033,2553.7,2553.3,2.5364]
[1747580668035,2.7174,2553.7,2553.3,2.5364]
[1747580668531,5.9252,2553.7,2553.1,3.2078]
[1747580668835,0.78317,2552.9,2552.6,1.93256824]
[1747580669021,0.78317,2552.9,2552.7,2.5364]
[1747580669327,0.78319,2552.8,2552.7,2.5364]
[1747580669527,0.78322,2552.7,2552.5,5.9205]
[1747580669730,0.78322,2552.7,2552.5,8.6349]
[1747580669935,0.78325,2552.6,2552.5,8.6349]
[1747580670228,0.78325,2552.6,2552.5,3.2078]
[1747580671023,2.5523,2552.9,2552.5,3.2078]
[1747580671435,2.5523,2552.9,2552.6,2.7144]
[1747580671637,0.78322,2552.7,2552.6,2.7144]
[1747580671839,2.5523,2552.9,2552.6,2.7144]
[1747580672044,2.5523,2552.9,2552.8,0.78319]
[1747580672233,3.99082,2553.4,2552.7,4.12381584]
[1747580672441,2.5523,2553.7,2553.0,3.2078]
[1747580672645,0.78296,2553.6,2553.3,3.2078]
[1747580672934,3.33524,2553.7,2553.4,2.5081]
[1747580673130,3.33523,2553.7,2553.4,3.2911]
[1747580673530,3.99067,2553.9,2553.6,0.78293]
[1747580673840,3.99068,2553.9,2553.7,2.5081]
[1747580674030,3.2078,2553.9,2553.7,2.5081]
[1747580674342,0.78288,2553.8,2553.7,2.5081]
[1747580674534,0.78295,2553.6,2553.5,2.738]
[1747580674739,0.78301,2553.4,2553.3,2.6789]
[1747580674939,3.3,2553.5,2553.3,2.6789]
[1747580675141,0.78297,2553.6,2553.4,2.5081]
[1747580675337,0.78298,2553.5,2553.4,2.5081]
[1747580675637,12.13435,2553.7,2552.9,1.06060201]
[1747580675844,0.7831,2553.1,2553.0,5.9721]
[1747580676142,2.5928,2553.4,2553.0,5.9721]
[1747580676143,10.177,2553.3,2553.1,0.78309]
[1747580676338,3.37583,2553.4,2553.1,0.78309]
[1747580676537,0.78304,2553.3,2553.2,2.7643]
[1747580677235,10.177,2553.6,2553.2,2.7643]
[1747580677441,2.5928,2553.8,2553.7,0.78292]
[1747580677638,0.78283,2554.0,2553.7,0.7829]
[1747580677835,0.78284,2554.0,2553.8,2.7643]
[1747580678040,0.78284,2554.0,2553.8,3.54718]
[1747580678240,3.99065,2553.9,2553.8,2.7643]
[1747580678441,3.2078,2553.9,2553.8,2.7643]
[1747580678639,14.16858,2554.2,2553.9,0.78284]
[1747580678847,0.7828,2554.1,2554.0,2.5405]
[1747580679547,3.2078,2554.2,2554.1,0.78279]
[1747580679740,3.088987,2554.3,2554.0,5.7483]
[1747580679945,3.088987,2554.3,2554.1,5.49]
[1747580680149,0.78275,2554.3,2554.2,2.5405]
[1747580680446,0.78271,2554.4,2554.2,2.5405]
[1747580680643,2.6536,2554.5,2554.2,2.5405]
[1747580680842,3.2078,2554.8,2554.4,0.78268]
[1747580681049,3.2078,2554.8,2554.2,6.85150893]
[1747580681050,0.07828707,2554.7,2554.5,2.5405]
[1747580681345,0.78267,2554.5,2554.3,0.78273]
[1747580681647,0.78267,2554.5,2554.2,4.31100893]
[1747580681648,0.78273,2554.3,2554.2,4.31100893]
[1747580681853,0.78273,2554.3,2554.1,7.9661]
[1747580682148,10.177,2554.4,2553.7,3.2078]
[1747580682344,2.5198,2554.2,2553.7,3.2078]
[1747580682644,5.7276,2554.2,2553.7,3.2078]
[1747580682843,10.177,2554.1,2553.8,0.78287]
[1747580683047,10.177,2554.1,2553.9,0.78284]
[1747580683248,12.6968,2554.1,2554.0,2.4761]
[1747580683445,2.5198,2554.1,2553.7,3.2078]
[1747580683642,3.3026,2554.1,2553.8,2.4761]
[1747580683847,2.5198,2554.1,2553.8,2.4761]
[1747580684046,12.6968,2554.1,2553.9,0.78284]
[1747580684251,5.9726,2554.5,2553.8,2.4761]
[1747580684544,2.5198,2554.4,2553.8,2.4761]
[1747580684749,2.5198,2554.4,2554.2,0.78274]
[1747580684942,2.5198,2554.4,2554.2,0.78275]
[1747580685335,2.5198,2554.4,2554.2,0.78273]
[1747580685546,3.30251,2554.4,2554.1,5.96688]
[1747580685947,2.5198,2554.4,2554.1,5.1841]
[1747580686247,0.78276,2554.2,2554.1,2.6205]
[1747580686544,2.5198,2554.4,2554.1,0.78278]
[1747580686751,2.5198,2554.4,2553.9,3.2078]
[1747580686948,2.5198,2554.4,2554.1,0.78277]
[1747580687142,0.78273,2554.3,2554.2,2.5636]
[1747580687342,0.78275,2554.3,2553.9,3.2078]
[1747580687543,2.6625,2554.2,2554.1,0.78279]
[1747580687739,3.99049,2554.5,2554.0,2.5636]
[1747580687951,9.893,2554.4,2554.2,0.78274]
[1747580688252,9.893,2554.4,2554.3,2.5812]
[1747580688448,12.4398,2554.4,2554.3,2.5812]
[1747580688644,2.5468,2554.4,2554.3,2.5812]
[1747580689248,3.3295,2554.4,2554.3,2.5812]
[1747580689647,3.2078,2554.5,2554.3,2.5812]
[1747580689848,9.893,2554.6,2554.4,0.7827]
[1747580690049,3.3294,2554.8,2554.5,3.36385]
[1747580690243,9.893,2554.7,2554.5,2.5812]
[1747580690440,9.893,2554.7,2554.5,3.36384]
[1747580690654,2.5468,2554.8,2554.5,2.5812]
[1747580690848,13.22238,2554.8,2554.5,3.36385]
[1747580691153,13.22238,2554.8,2554.6,0.78263]
[1747580691346,13.22238,2554.8,2554.7,2.5276]
[1747580691650,2.5468,2554.8,2554.7,3.31021]
[1747580693152,3.2078,2555.2,2554.7,7.69186]
[1747580693449,2.5007,2555.4,2555.0,5.16409]
[1747580693643,6.296787,2555.6,2555.5,0.78236]
[1747580693644,3.088987,2555.6,2555.5,0.78236]
[1747580694450,3.088987,2555.6,2555.5,3.38726]
[1747580695249,3.088987,2555.6,2555.5,7.66769535]
[1747580695455,3.088987,2555.6,2555.5,12.66769535]
[1747580695846,5.42401257,2556.2,2555.8,0.78227]
[1747580696149,0.78193,2556.9,2556.5,0.78206]
[1747580696454,8.50450751,2556.6,2556.4,10.67107]
[1747580696757,7.72246751,2556.6,2556.3,2.6049]
[1747580696955,2.5177,2556.5,2556.1,3.98995]
[1747580697146,3.29978,2556.5,2556.3,0.7821]
[1747580697351,2.5177,2556.5,2556.4,0.78209]
[1747580697549,0.782,2556.7,2556.5,0.78204]
[1747580697857,2.5177,2556.7,2556.5,0.78203]
[1747580698048,2.5177,2556.7,2556.6,0.78203]
[1747580698253,0.78191,2557.0,2556.8,0.78195]
[1747580698456,0.07821971,2556.9,2556.8,0.78195]
[1747580698654,0.07821971,2556.9,2556.5,4.11063029]
[1747580698953,0.78203,2556.6,2556.3,0.78209]
[1747580699157,2.5177,2556.5,2556.4,3.98989]
[1747580699355,2.5177,2556.5,2556.4,0.78209]
[1747580699751,2.4981,2556.8,2556.4,0.78209]
[1747580699955,2.68612277,2556.8,2556.7,0.78199]
[1747580700161,0.07822277,2556.8,2556.7,3.98979]
[1747580700745,0.07822277,2556.8,2556.6,0.78201]
[1747580701056,0.07822277,2556.8,2556.7,0.78199]
[1747580701357,0.07822277,2556.8,2556.7,3.98979]
[1747580702660,0.07822277,2556.8,2556.7,3.2078]
[1747580703056,0.07822277,2556.8,2556.7,3.98979]
[1747580703257,0.78199,2556.7,2556.3,3.2078]